bitfinex/quotes_ETHUSD_20260213
["timestamp","ask_amount","ask_price","bid_price","bid_amount"]
[1770989581303,3.26327729,1972.8,1971.2,0.05073051]
[1770989581503,3.26327729,1972.8,1971.3,1.26819865]
[1770989581713,3.26327729,1972.8,1971.4,0.05072536]
[1770989582516,3.26327729,1972.8,1971.5,2.566776]
[1770989582702,3.26327729,1972.8,1971.6,0.05072021]
[1770989582900,1.996,1972.8,1971.7,8.086984]
[1770989583224,3.26323814,1972.8,1971.3,1.26819865]
[1770989583552,3.26323814,1972.8,1970.8,0.001]
[1770989583553,0.1024,1972.7,1971.0,0.00153886]
[1770989583757,0.1024,1972.7,1971.2,0.001]
[1770989584047,0.002,1972.6,1971.2,0.001]
[1770989584255,0.002,1972.6,1971.3,10.629664]
[1770989584479,0.002,1972.6,1971.6,0.18685624]
[1770989584957,0.002,1972.6,1971.5,11.628122]
[1770989585157,0.002,1972.6,1971.3,3.330301]
[1770989585328,0.002,1972.6,1971.4,0.18685624]
[1770989585653,0.002,1972.6,1971.8,4.10174]
[1770989585820,0.002,1972.6,1971.7,9.10104]
[1770989586155,0.002,1972.6,1971.6,1.26800568]
[1770989586521,0.002,1972.6,1971.7,15.694626]
[1770989586722,0.002,1972.6,1971.6,1.26800568]
[1770989586922,0.002,1972.6,1971.7,8.699523]
[1770989587157,0.002,1972.6,1971.7,2.42]
[1770989587355,0.002,1972.6,1971.7,2.4627]
[1770989587552,0.002,1972.6,1971.8,1.26787706]
[1770989588055,0.00153886,1973.0,1971.9,19.618359]
[1770989588261,0.00153886,1973.0,1971.9,2.4773]
[1770989588865,0.00153886,1973.0,1972.1,15.673015]
[1770989589526,0.002,1973.5,1972.3,21.676368]
[1770989589725,0.002,1973.5,1972.5,29.55107]
[1770989590037,0.002,1973.5,1972.5,0.18685624]
[1770989590232,0.002,1973.5,1972.4,29.55107]
[1770989590436,0.002,1973.5,1972.4,6.98115]
[1770989590765,0.002,1973.5,1972.2,1.26761991]
[1770989591129,0.002,1973.5,1972.3,11.351644]
[1770989591533,0.00153886,1974.0,1972.8,24.59383]
[1770989591727,0.00153886,1974.0,1972.8,7.341442]
[1770989592033,0.00153886,1974.0,1973.0,14.118545]
[1770989592239,0.00153886,1974.0,1972.7,7.382493]
[1770989592447,0.00153886,1974.0,1972.7,4.752369]
[1770989592956,0.00153886,1974.0,1972.9,7.944321]
[1770989593257,0.00153886,1974.0,1972.7,5.593292]
[1770989593455,0.00153886,1974.0,1972.8,1.26723438]
[1770989593668,0.00153886,1974.0,1972.9,7.902735]
[1770989593842,0.00153886,1974.0,1972.9,2.386849]
[1770989594030,0.00153886,1974.0,1972.9,12.432698]
[1770989594354,0.00153886,1974.0,1973.0,0.18685624]
[1770989594541,2.18015105,1974.5,1973.3,16.344363]
[1770989594542,0.914,1974.5,1973.3,16.344363]
[1770989594742,0.914,1974.5,1973.2,29.55107]
[1770989594949,0.00153886,1975.0,1973.5,29.55107]
[1770989595261,1.2673721,1975.0,1973.5,0.28925624]
[1770989595558,0.00153886,1975.0,1973.8,4.270292]
[1770989597127,0.00153886,1975.0,1973.8,3.4893]
[1770989597552,0.00153886,1975.0,1973.9,1.26652819]
[1770989597754,0.002,1974.4,1973.9,1.26652819]
[1770989599239,0.00153886,1975.0,1974.0,2.292]
[1770989599829,0.00153886,1975.0,1974.0,1.26641568]
[1770989600666,0.00153886,1975.0,1974.1,5.208407]
[1770989600858,0.00153886,1975.0,1974.0,1.26641568]
[1770989601027,0.00153886,1975.0,1974.1,2.182577]
[1770989601454,0.00153886,1975.0,1974.0,1.26641568]
[1770989602067,0.00153886,1975.0,1973.9,5.06597197]
[1770989602246,0.00153886,1975.0,1974.0,2.706]
[1770989603043,0.002,1975.3,1974.0,2.706]
[1770989603336,0.002,1975.3,1974.0,2.70753886]
[1770989603539,0.002,1975.3,1974.1,22.35992]
[1770989604039,0.002,1975.3,1974.2,1.26633573]
[1770989605258,0.002,1975.3,1974.3,27.297202]
[1770989605572,0.002,1975.5,1974.3,27.297202]
[1770989605964,0.002,1975.5,1974.5,29.55107]
[1770989606168,0.002,1975.5,1974.7,21.246635]
[1770989606368,0.91453886,1977.0,1975.0,9.98596658]
[1770989606559,9.98596658,1976.9,1974.8,8.01549]
[1770989606874,1.26508416,1976.2,1974.8,8.01549]
[1770989607180,9.98596658,1976.9,1974.8,8.01549]
[1770989607181,1.26514958,1976.1,1974.8,8.01549]
[1770989607353,1.26675203,1976.0,1974.7,7.485786]
[1770989607553,0.00153886,1976.0,1974.7,5.907027]
[1770989608067,1.26674932,1976.0,1974.7,3.79605]
[1770989608265,0.00153886,1976.0,1974.8,1.26595098]
[1770989608651,0.00153886,1976.0,1974.9,12.011789]
[1770989609667,0.00153886,1976.0,1975.0,0.18685624]
[1770989609873,1.2660885,1977.0,1975.3,29.55107]
[1770989610176,1.2660885,1977.0,1975.1,1.26575869]
[1770989610477,100.0,1976.0,1975.2,3.886427]
[1770989610679,100.0,1976.0,1975.1,1.26575869]
[1770989610855,100.0,1976.0,1975.2,2.1333]
[1770989612358,100.0,1976.0,1975.3,1.26563053]
[1770989613079,47.09570052,1976.0,1975.3,1.26563053]
[1770989613280,1.26664841,1976.9,1975.4,15.766247]
[1770989613456,1.26660834,1976.9,1975.4,4.311177]
[1770989614161,0.002,1976.9,1975.5,0.18685624]
[1770989614358,0.002,1976.9,1975.7,1.26537429]
[1770989615084,0.002,1976.9,1975.8,12.195232]
[1770989616092,0.002,1977.1,1976.0,27.705472]
[1770989616263,0.913,1977.4,1976.2,29.55107]
[1770989616600,0.002,1977.8,1976.5,0.18685624]
[1770989616801,1.26604675,1977.8,1976.6,6.50724]
[1770989617307,1.26603589,1977.8,1976.4,8.047793]
[1770989617490,1.26603589,1977.8,1976.4,4.915569]
[1770989617657,0.002,1977.8,1976.4,4.915569]
[1770989617853,1.26604156,1977.8,1976.4,4.915569]
[1770989618083,0.002,1977.8,1976.4,4.915569]
[1770989618255,0.002,1977.8,1976.8,14.79271]
[1770989618456,0.002,1977.8,1976.9,1.2646062]
[1770989619663,0.002,1977.8,1976.4,5.05947928]
[1770989619866,0.002,1977.8,1976.1,5.06032883]
[1770989620104,0.912,1977.7,1976.1,5.06032883]
[1770989620466,0.912,1977.7,1976.0,1.26665702]
[1770989620467,1.26415857,1977.6,1976.0,0.00153886]
[1770989621678,1.26415857,1977.6,1976.2,16.962172]
[1770989621884,1.26415857,1977.6,1976.2,8.822513]
[1770989622083,1.26415857,1977.6,1976.1,2.95345]
[1770989622282,1.26415857,1977.6,1976.2,0.18685624]
[1770989622592,1.26415857,1977.6,1976.4,9.73335]
[1770989622997,2.17610612,1977.7,1976.4,9.73335]
[1770989623224,0.912,1977.7,1976.4,9.73335]
[1770989623618,2.17609806,1977.7,1976.4,9.73335]
[1770989623825,2.17609806,1977.7,1976.4,9.442171]
[1770989623986,2.17609806,1977.7,1976.3,1.26499013]
[1770989624488,2.17609806,1977.7,1976.1,21.912536]
[1770989624697,2.17609806,1977.7,1976.0,0.00153886]
[1770989624895,2.17609806,1977.7,1976.1,3.1553]
[1770989625089,2.17609806,1977.7,1976.1,0.001]
[1770989625295,0.1024,1977.6,1976.1,0.001]
[1770989626219,0.1024,1977.4,1976.1,0.001]
[1770989626405,1.26441432,1977.2,1976.1,0.001]
[1770989628737,1.994,1977.3,1976.2,7.695658]
[1770989628890,1.2641942,1977.6,1976.2,7.695658]
[1770989629525,1.2641942,1977.6,1976.1,0.001]
[1770989630014,11.42476766,1977.6,1976.1,0.001]
[1770989630524,1.2641942,1977.6,1976.1,0.001]
[1770989630722,0.1024,1977.6,1976.1,0.001]
[1770989631096,5.05848708,1977.7,1976.2,29.062556]
[1770989632311,15.21906054,1977.7,1976.1,0.001]
[1770989632998,5.05848708,1977.7,1976.1,0.001]
[1770989633524,5.05848708,1977.7,1976.2,16.90747]
[1770989633742,5.05848708,1977.7,1976.2,5.677587]
[1770989634817,5.05848708,1977.7,1976.4,24.314718]
[1770989635018,0.002,1977.7,1976.4,24.314718]
[1770989635246,0.002,1977.7,1976.7,10.15561904]
[1770989635448,0.002,1977.7,1976.8,29.55107]
[1770989636065,0.00153886,1979.0,1977.6,9.9687628]
[1770989636240,1.26481588,1979.0,1977.7,0.1024]
[1770989636421,0.00153886,1979.0,1977.8,25.844705]
[1770989636621,0.00153886,1979.0,1978.1,0.18685624]
[1770989636930,1.26275381,1979.8,1978.3,1.26371126]
[1770989637119,1.26275381,1979.8,1978.4,2.153164]
[1770989637315,1.26275381,1979.8,1978.3,1.26371126]
[1770989637641,1.26275381,1979.8,1978.4,11.457638]
[1770989637839,1.26275381,1979.8,1978.3,1.26371126]
[1770989638026,0.002,1978.9,1978.3,1.26371126]
[1770989639458,1.26475381,1979.8,1978.1,29.55107]
[1770989639960,1.26475381,1979.8,1978.1,25.885668]
[1770989640346,1.26475381,1979.8,1978.3,29.55107]
[1770989640656,0.002,1979.8,1978.4,0.18685624]
[1770989640821,0.002,1979.8,1978.7,29.55107]
[1770989641138,0.002,1979.8,1978.7,8.083629]
[1770989641325,0.002,1979.8,1978.7,12.864368]
[1770989641525,0.002,1979.8,1978.8,1.26339195]
[1770989642565,0.002,1979.8,1978.9,3.613173]
[1770989642771,0.002,1979.8,1978.8,1.26339195]
[1770989642936,0.002,1979.8,1978.9,13.249606]
[1770989643139,0.00153886,1980.0,1978.9,13.249606]
[1770989643330,0.00153886,1980.0,1978.9,6.545303]
[1770989643524,0.00153886,1980.0,1978.4,6.266651]
[1770989643741,0.00153886,1980.0,1978.0,2.17643219]
[1770989643940,0.00153886,1980.0,1978.1,9.453092]
[1770989644140,0.00153886,1980.0,1978.0,2.17643219]
[1770989644352,0.00153886,1980.0,1978.1,5.661504]
[1770989644665,0.00153886,1980.0,1978.0,2.17643219]
[1770989644666,9.012161,1979.9,1978.0,2.17643219]
[1770989645045,0.00153886,1980.0,1978.1,18.495848]
[1770989645245,0.00153886,1980.0,1978.0,1.26543219]
[1770989645566,0.00153886,1980.0,1978.2,1.26377514]
[1770989645779,0.00153886,1980.0,1978.3,2.456156]
[1770989646066,0.00153886,1980.0,1978.2,1.26377514]
[1770989646372,0.00153886,1980.0,1978.1,1.26378705]
[1770989646678,5.782673,1979.9,1978.1,1.26378705]
[1770989646838,0.00153886,1980.0,1978.0,0.00153886]
[1770989646839,10.12664498,1979.7,1978.0,0.00153886]
[1770989647035,9.717904,1979.6,1978.0,0.00153886]
[1770989647344,0.96922894,1979.4,1978.0,1.26543584]
[1770989647669,1.26313662,1979.2,1978.0,0.00153886]
[1770989649247,2.23236556,1979.2,1978.0,0.00153886]
[1770989649645,0.96922894,1979.1,1978.0,0.00153886]
[1770989649846,0.96922894,1978.9,1978.0,0.00153886]
[1770989650573,0.96922894,1978.9,1977.1,1.26447827]
[1770989650770,0.96922894,1978.7,1977.0,1.26606495]
[1770989651071,0.96922894,1978.7,1977.0,0.00153886]
[1770989651274,0.96922894,1978.7,1977.0,1.26607293]
[1770989651459,0.96922894,1978.7,1977.2,0.001]
[1770989651859,0.96922894,1978.5,1977.2,0.001]
[1770989652171,0.96922894,1978.4,1977.2,0.001]
[1770989653373,1.98,1978.5,1977.2,0.001]
[1770989653561,0.96922894,1978.4,1977.2,0.001]
[1770989654244,1.26371126,1978.3,1977.2,0.001]
[1770989654472,0.96922894,1978.2,1977.2,0.001]
[1770989654681,0.96922894,1978.1,1977.2,0.001]
[1770989656484,0.96922894,1977.9,1977.2,0.001]
[1770989656864,0.96922894,1977.8,1977.0,0.00153886]
[1770989657170,0.96922894,1977.8,1976.5,1.26485256]
[1770989657478,1.26390293,1978.0,1976.2,0.001]
[1770989657479,0.96922894,1977.6,1976.2,0.001]
[1770989657647,11.39208677,1978.0,1976.2,0.001]
[1770989657648,1.978,1977.5,1976.2,1.26603885]
[1770989657976,2.94722894,1977.5,1976.2,1.26603885]
[1770989658382,1.26428643,1977.4,1976.2,0.001]
[1770989658709,1.978,1977.5,1976.3,20.42596]
[1770989658888,1.978,1977.5,1976.4,1.01809874]
[1770989659053,0.00153886,1978.0,1976.6,18.607214]
[1770989659247,0.00153886,1978.0,1976.4,0.18685624]
[1770989659248,1.2654636,1978.0,1976.8,4.942636]
[1770989659673,1.26544447,1978.0,1976.8,4.942636]
[1770989659868,1.26544447,1978.0,1976.3,1.01809874]
[1770989660081,1.26544447,1978.0,1976.5,7.521238]
[1770989660453,0.00153886,1978.0,1976.7,26.65467374]
[1770989660666,0.00153886,1978.0,1977.0,12.810811]
[1770989660861,0.00153886,1978.0,1977.0,7.189657]
[1770989661079,0.00153886,1978.0,1977.0,6.189657]
[1770989661383,2.1746567,1978.4,1977.1,12.816602]
[1770989661589,0.911,1978.4,1977.3,1.01809874]
[1770989661786,0.911,1978.4,1977.4,22.055232]
[1770989661989,0.911,1978.4,1977.3,1.01809874]
[1770989662297,0.911,1978.4,1977.4,9.886532]
[1770989662456,0.911,1978.4,1977.6,3.062519]
[1770989662660,2.1746485,1978.4,1977.5,1.2642225]
[1770989662964,0.911,1978.4,1977.5,1.2642225]
[1770989663167,1.977,1978.5,1977.6,20.544804]
[1770989663391,1.26339588,1978.8,1977.6,20.544804]
[1770989663699,1.26339588,1978.8,1977.6,19.408976]
[1770989664089,1.26339588,1978.8,1977.7,0.001]
[1770989664290,1.26332811,1978.9,1977.7,0.001]
[1770989664458,1.26480313,1979.0,1977.8,21.920788]
[1770989664658,1.26480313,1979.0,1977.7,0.001]
[1770989664860,1.26480313,1979.0,1977.8,4.920598]
[1770989665494,1.26480313,1979.0,1978.0,16.658134]
[1770989665495,0.00153886,1979.0,1978.0,16.658134]
[1770989665674,0.00153886,1979.0,1978.0,16.05086]
[1770989666061,0.00153886,1979.0,1978.0,14.289982]
[1770989666261,0.00153886,1979.0,1978.1,13.124864]
[1770989666593,0.00153886,1979.0,1978.2,1.26377514]
[1770989668779,0.00153886,1979.0,1978.1,5.05510059]
[1770989671094,0.00153886,1979.0,1978.0,1.26383903]
[1770989671095,0.00153886,1979.0,1977.7,0.001]
[1770989671296,0.00153886,1979.0,1977.8,2.07653]
[1770989671591,0.00153886,1979.0,1977.8,2.97149736]
[1770989671770,0.00153886,1979.0,1978.0,22.41397936]
[1770989671974,5.96282681,1979.5,1978.3,25.091294]
[1770989671975,0.911,1979.5,1978.3,25.091294]
[1770989672327,0.911,1979.5,1977.9,2.285]
[1770989672328,20.76859194,1982.1,1980.5,1.628897]
[1770989672473,21.61805822,1983.9,1980.3,1.15110644]
[1770989672474,0.00453886,1983.0,1982.0,10.13140395]
[1770989672808,0.1306866,1983.9,1983.7,16.92109253]
[1770989672967,0.1306866,1983.9,1983.4,1.31935071]
[1770989673170,0.1306866,1983.9,1983.5,1.05510014]
[1770989673418,0.95649799,1983.8,1983.2,1.31935071]
[1770989673745,21.438874,1983.6,1982.2,1.75913428]
[1770989673903,0.911,1983.5,1982.3,1.0501129]
[1770989674071,0.95649799,1983.0,1981.9,1.75913428]
[1770989674269,0.95649799,1983.0,1981.6,1.75913428]
[1770989674472,0.95649799,1982.9,1981.6,1.75913428]
[1770989674990,0.95649799,1982.9,1981.5,1.75913428]
[1770989675294,0.95649799,1982.7,1982.0,0.00153886]
[1770989675679,0.95649799,1982.4,1981.5,1.75913428]
[1770989675874,0.95649799,1982.4,1981.2,3.02096114]
[1770989676074,0.95649799,1982.4,1981.2,3.02099121]
[1770989676294,0.95649799,1982.4,1981.1,3.02103602]
[1770989676465,0.95649799,1982.4,1981.0,3.0226199]
[1770989676661,1.41587544,1982.2,1981.0,0.00153886]
[1770989677283,1.41587544,1982.0,1981.0,0.00153886]
[1770989678140,5.04493348,1982.2,1981.0,0.00153886]
[1770989678141,1.26126946,1982.2,1981.0,0.00153886]
[1770989678294,2.6771449,1982.2,1981.0,0.00153886]
[1770989678698,1.26126946,1982.2,1981.0,0.00153886]
[1770989679037,2.6771449,1982.2,1981.0,0.00153886]
[1770989679188,0.002,1981.9,1981.0,0.00153886]
[1770989680087,1.41587544,1981.7,1980.4,1.75913428]
[1770989680420,1.41587544,1981.7,1980.3,1.26239521]
[1770989680624,1.41587544,1981.7,1980.1,1.26255898]
[1770989680824,1.41587544,1981.7,1980.0,1.76067314]
[1770989680825,1.41587544,1981.4,1980.0,0.00153886]
[1770989681031,1.41587544,1981.2,1980.0,0.00153886]
[1770989681232,1.26192519,1981.1,1980.0,0.00153886]
[1770989681393,1.26189384,1981.2,1980.0,0.00153886]
[1770989682232,5.04698157,1981.4,1980.0,1.76067314]
[1770989682544,5.04698157,1981.4,1980.1,1.75913428]
[1770989682703,1.26167045,1981.6,1980.1,1.75913428]
[1770989683403,1.26155541,1981.7,1980.3,20.03736228]
[1770989683600,1.26155541,1981.7,1980.3,1.75913428]
[1770989684823,1.26155541,1981.7,1980.4,1.75913428]
[1770989685549,5.04817247,1981.9,1980.4,6.80836427]
[1770989685550,6.46404791,1981.9,1980.4,6.80836427]
[1770989686442,6.46404791,1981.9,1980.5,1.04372716]
[1770989686739,6.46404791,1981.9,1980.6,1.04372716]
[1770989686912,6.46404791,1981.9,1980.7,1.04372716]
[1770989687114,1.41587544,1981.8,1980.8,1.04372716]
[1770989687341,1.26154311,1981.7,1980.4,3.02150551]
[1770989687537,1.26154311,1981.7,1980.5,1.04520906]
[1770989687712,1.26154311,1981.7,1980.6,1.04520906]
[1770989687912,1.26154311,1981.7,1980.7,1.04520906]
[1770989688113,1.26154311,1981.7,1980.8,1.04520906]
[1770989688315,1.26154311,1981.7,1980.9,1.04520906]
[1770989688631,1.26154311,1981.7,1981.0,1.04520906]
[1770989688832,1.26154311,1981.7,1980.6,1.75913428]
[1770989689047,1.26154311,1981.7,1980.7,1.04693491]
[1770989689366,0.002,1981.9,1980.9,1.2620526]
[1770989689660,0.002,1981.9,1981.0,1.04693491]
[1770989689809,0.002,1981.9,1981.1,1.04693491]
[1770989690014,0.002,1981.9,1980.8,3.02124955]
[1770989690361,0.002,1981.9,1980.9,2.80677716]
[1770989690646,0.002,1981.9,1981.0,1.04764288]
[1770989690845,0.002,1981.9,1981.1,2.80677716]
[1770989691049,0.002,1981.9,1981.2,1.04764288]
[1770989691232,0.002,1981.9,1981.3,1.04764288]
[1770989691432,0.002,1981.9,1981.4,1.04764288]
[1770989691645,0.002,1981.9,1981.5,1.04764288]
[1770989691851,0.002,1981.9,1981.6,1.04764288]
[1770989692045,0.002,1981.9,1981.3,1.26178955]
[1770989692220,0.002,1981.9,1981.4,1.04924336]
[1770989692418,0.002,1981.9,1981.1,1.75913428]
[1770989692647,0.002,1981.9,1980.9,3.02118052]
[1770989692853,0.002,1981.9,1980.9,1.75913428]
[1770989693039,0.002,1981.9,1980.8,3.02120819]
[1770989693353,0.002,1981.9,1980.9,1.75913428]
[1770989693546,0.002,1981.9,1980.8,1.75913428]
[1770989693770,0.002,1981.9,1980.7,0.001]
[1770989693771,1.41787544,1981.9,1980.7,0.001]
[1770989693953,1.961,1981.8,1980.7,0.001]
[1770989694127,3.37687544,1981.8,1980.7,0.001]
[1770989694531,1.961,1981.8,1980.8,1.75913428]
[1770989694739,1.961,1981.8,1980.7,3.02228334]
[1770989695132,1.961,1981.8,1980.7,1.76013428]
[1770989695420,1.26154311,1981.7,1980.7,0.001]
[1770989695820,1.26154311,1981.7,1980.7,3.02231256]
[1770989696020,1.26154311,1981.7,1980.7,1.76013428]
[1770989696519,2.67741855,1981.7,1980.7,0.001]
[1770989697165,1.26154311,1981.7,1980.7,0.001]
[1770989697446,1.26154311,1981.7,1980.7,1.76013428]
[1770989697628,2.67741855,1981.7,1980.7,1.76013428]
[1770989698030,1.41587544,1981.6,1980.7,0.001]
[1770989698815,1.41587544,1981.6,1980.5,0.001]
[1770989699031,12.17387638,1981.6,1980.5,0.001]
[1770989699444,1.26167045,1981.5,1980.5,0.001]
[1770989699950,10.75800094,1981.2,1980.2,1.75913428]
[1770989700352,1.41587544,1981.4,1980.3,1.75913428]
[1770989700753,1.41587544,1981.4,1980.2,1.75913428]
[1770989700958,10.75800094,1980.9,1980.0,0.00153886]
[1770989701152,12.72300094,1980.9,1980.0,0.00153886]
[1770989701355,1.26211631,1980.8,1980.0,1.26416456]
[1770989701554,1.26211631,1980.8,1979.4,4.40113938]
[1770989701555,1.26211631,1980.8,1979.4,3.5209115]
[1770989701771,10.75800094,1980.5,1979.0,4.96988881]
[1770989701993,10.75800094,1979.7,1978.6,3.5209115]
[1770989702268,10.75800094,1979.7,1978.2,2.71120627]
[1770989702469,10.75800094,1979.7,1978.2,2.71121206]
[1770989702779,10.75800094,1979.7,1978.3,0.04522699]
[1770989702980,3.38028699,1979.9,1978.3,0.04522699]
[1770989703267,13.51286478,1979.9,1978.3,0.04522699]
[1770989703431,1.26275381,1979.8,1978.4,2.71108584]
[1770989703630,1.26275381,1979.8,1978.5,1.49266086]
[1770989705154,1.26275381,1979.8,1978.6,0.001]
[1770989707184,1.26275381,1979.8,1978.6,0.04621326]
[1770989707490,1.26275381,1979.8,1978.8,1.44743845]
[1770989707680,5.05101525,1979.9,1978.9,1.49264485]
[1770989707681,1.26272535,1979.9,1978.9,1.49264485]
[1770989708155,0.00153886,1980.0,1979.0,23.571204]
[1770989708357,0.00153886,1980.0,1979.1,1.49264028]
[1770989708812,5.04822066,1980.9,1979.3,1.44743845]
[1770989708939,5.04822066,1980.9,1979.5,1.44743845]
[1770989709137,6.46350765,1980.9,1979.6,0.04518355]
[1770989709346,6.46350765,1980.9,1979.3,1.44743845]
[1770989709570,6.46350765,1980.9,1979.5,1.26294518]
[1770989709868,5.04822066,1980.9,1979.6,0.04525133]
[1770989710635,5.04822066,1980.9,1979.6,1.49268978]
[1770989711292,15.18079845,1980.9,1979.4,1.26296545]
[1770989711451,15.18079845,1980.9,1979.2,1.26313662]
[1770989711788,1.41528699,1980.7,1979.0,0.00153886]
[1770989711949,10.13257779,1980.4,1979.0,0.00153886]
[1770989712143,10.13257779,1980.4,1979.0,1.26478624]
[1770989712445,10.13257779,1980.4,1979.0,0.00153886]
[1770989712873,1.41528699,1980.3,1979.0,0.00153886]
[1770989713782,2.67778572,1980.2,1979.0,0.00153886]
[1770989713946,1.26249873,1980.2,1979.0,0.00153886]
[1770989714284,1.41528699,1980.1,1979.0,0.00153886]
[1770989714484,1.51768699,1980.0,1979.0,0.00153886]
[1770989714696,1.26249873,1980.2,1979.0,0.00153886]
[1770989714846,1.41528699,1980.0,1979.0,0.00153886]
[1770989715473,1.26249873,1980.2,1979.0,0.00153886]
[1770989715763,0.1024,1980.2,1979.0,0.00153886]
[1770989715987,1.51768699,1980.2,1979.0,0.00153886]
[1770989716605,10.13257779,1979.8,1978.6,0.001]
[1770989716765,1.41528699,1979.7,1978.6,0.001]
[1770989717175,3.38028699,1979.7,1978.6,0.001]
[1770989717386,1.965,1979.7,1978.6,1.26450126]
[1770989717591,1.26288139,1979.6,1978.6,0.001]
[1770989717792,1.26288139,1979.6,1978.6,1.44843845]
[1770989717992,1.26288139,1979.6,1978.6,0.001]
[1770989718497,1.26288139,1979.6,1979.0,0.001]
[1770989719801,5.05152556,1979.8,1979.0,0.001]
[1770989720305,11.54786478,1979.7,1978.6,0.001]
[1770989720526,1.41528699,1979.6,1978.0,0.00153886]
[1770989720680,10.13257779,1979.2,1978.0,0.00153886]
[1770989720998,3.38128699,1979.5,1978.0,0.00153886]
[1770989721173,10.13257779,1979.3,1978.0,0.00153886]
[1770989721369,10.13257779,1978.4,1977.7,0.001]
[1770989721570,1.41528699,1978.9,1977.7,0.001]
[1770989721571,0.1024,1978.8,1977.7,0.001]
[1770989721772,1.2634558,1978.7,1977.7,0.001]
[1770989723018,11.54786478,1978.5,1977.5,0.001]
[1770989723303,1.41528699,1978.4,1977.0,0.00153886]
[1770989723862,1.26371126,1978.3,1977.0,0.00153886]
[1770989723971,1.26371126,1978.3,1977.0,1.44897731]
[1770989724171,1.26371126,1978.3,1977.1,0.02397564]
[1770989724405,1.26371126,1978.3,1977.0,1.47295295]
[1770989725004,1.26371126,1978.3,1977.0,0.00153886]
[1770989725210,10.13257779,1978.1,1977.0,0.00153886]
[1770989725772,1.26396683,1977.9,1977.0,0.00153886]
[1770989726174,1.26396683,1977.9,1976.8,0.001]
[1770989727807,1.26396683,1977.9,1976.8,1.44843845]
[1770989729590,1.26396683,1977.9,1976.8,0.001]
[1770989731802,2.56689178,1977.9,1976.8,0.001]
[1770989732207,2.56689178,1977.9,1976.9,0.001]
[1770989732413,1.26396683,1977.9,1976.9,0.001]
[1770989732640,0.1024,1978.5,1977.0,1.31483312]
[1770989732779,1.26556812,1978.6,1977.3,1.31483312]
[1770989733411,1.979,1978.5,1977.0,0.00153886]
[1770989733781,1.26390293,1978.0,1977.0,0.00153886]
[1770989734110,4.32627,1977.9,1977.0,0.00153886]
[1770989734274,1.979,1977.8,1976.8,0.001]
[1770989736008,1.26409465,1977.7,1976.8,0.001]
[1770989737418,1.26409465,1977.7,1976.8,1.32877811]
[1770989738116,1.26409465,1977.7,1976.8,0.001]
[1770989739004,1.26409465,1977.7,1976.8,1.32877811]
[1770989739517,1.26409465,1977.7,1976.8,0.001]
[1770989741894,3.24307506,1977.8,1976.8,1.32877811]
[1770989742096,3.24307506,1977.8,1976.9,1.2646062]
[1770989742425,1.26407506,1977.8,1976.9,2.59238431]
[1770989743207,1.26407506,1977.8,1976.9,1.32777811]
[1770989743408,1.26407506,1977.8,1976.8,1.26562567]
[1770989743409,1.26407506,1977.8,1976.8,0.001]
[1770989744143,5.05612296,1977.9,1976.8,0.001]
[1770989744286,11.51320346,1977.7,1976.8,0.001]
[1770989744491,1.976,1977.6,1976.8,0.001]
[1770989745207,1.978,1977.6,1976.8,0.001]
[1770989745589,0.002,1977.6,1976.8,0.001]
[1770989746321,0.002,1977.6,1976.8,1.32877811]
[1770989748016,0.002,1977.7,1976.9,1.32777811]
[1770989748221,0.002,1977.7,1977.1,1.32777811]
[1770989748528,0.00153886,1978.0,1977.2,1.32777811]
[1770989748696,0.00153886,1978.0,1977.3,1.32777811]
[1770989749195,0.00153886,1978.0,1977.1,2.65574083]
[1770989749196,0.00153886,1978.0,1977.6,1.32777811]
[1770989749632,0.00153886,1978.0,1977.5,1.76999514]
[1770989749842,0.00153886,1978.0,1977.3,1.76999514]
[1770989750138,0.00153886,1978.0,1977.4,1.76999514]
[1770989750447,0.00153886,1978.0,1977.5,1.32777811]
[1770989750597,0.00153886,1978.0,1977.6,3.09777325]
[1770989751327,0.002,1978.5,1977.8,1.32777811]
[1770989751490,0.002,1978.5,1977.9,3.09777325]
[1770989751692,0.002,1978.5,1978.0,1.32777811]
[1770989751893,0.002,1978.5,1978.1,1.32777811]
[1770989752324,0.002,1978.5,1978.0,1.26388425]
[1770989752526,0.002,1978.5,1978.1,1.32777811]
[1770989752733,0.002,1978.5,1978.2,1.76999514]
[1770989752896,0.002,1978.7,1978.2,1.76999514]
[1770989753213,0.002,1978.7,1978.1,1.32777811]
[1770989754294,0.002,1978.7,1978.2,1.26377514]
[1770989755608,0.002,1978.7,1978.2,2.59155325]
[1770989755992,0.002,1978.7,1978.0,5.05510059]
[1770989755993,0.002,1978.7,1978.0,5.05544201]
[1770989756224,0.002,1978.7,1977.9,1.26394743]
[1770989756396,0.002,1978.7,1977.8,6.38364544]
[1770989756794,0.002,1978.7,1978.1,1.32777811]
[1770989757020,1.21661166,1979.3,1978.1,1.32777811]
[1770989757609,0.002,1978.6,1978.1,1.32777811]
[1770989758424,0.002,1978.6,1978.2,1.26377514]
[1770989759508,0.002,1979.5,1978.2,1.26377514]
[1770989760624,0.002,1979.5,1978.2,2.59155325]
[1770989760826,1.26563556,1979.5,1978.1,1.26379995]
[1770989761140,1.26363556,1979.0,1978.0,0.00153886]
[1770989761594,7.137853,1978.9,1978.0,0.00153886]
[1770989761802,11.41109383,1978.6,1977.0,1.26704176]
[1770989762038,1.26363556,1978.5,1977.0,1.26707074]
[1770989762238,1.26363556,1978.5,1977.0,1.26707017]
[1770989762701,1.26363556,1978.2,1976.8,0.001]
[1770989763053,1.26363556,1978.0,1976.8,0.001]
[1770989763218,1.26517442,1978.0,1976.8,0.001]
[1770989764646,1.26363556,1977.7,1976.8,0.001]
[1770989765602,1.26363556,1977.6,1976.8,0.001]
[1770989765808,1.26363556,1977.4,1976.2,0.001]
[1770989766646,2.52798593,1977.3,1976.2,0.001]
[1770989766938,1.26363556,1977.0,1976.0,0.00253886]
[1770989767607,11.41109383,1977.2,1976.0,0.00253886]
[1770989768217,1.26363556,1977.1,1976.0,0.00253886]
[1770989768501,10.14745827,1977.2,1976.0,0.00253886]
[1770989768813,1.26447827,1977.1,1976.0,0.00253886]
[1770989769335,2.17463556,1977.9,1976.0,1.24830838]